fUST/lending_fUST_20251028
["ID","MTS","AMOUNT","RATE_DAILY","PERIOD"]
[392542882,1761635485192,-500.0,0.00023835,2]
[392542883,1761635485202,-1763.97,0.00023835,2]
[392542884,1761635485211,-540.2,0.00023835,2]
[392542885,1761635485221,-2436.61,0.00023835,2]
[392542886,1761635485230,-1315.04,0.00023835,2]
[392542887,1761635485241,-3051.8,0.00023835,2]
[392542888,1761635485250,-500.0,0.00023835,2]
[392542889,1761635485262,-500.0,0.00023835,2]
[392542890,1761635485271,-854.16,0.00023835,2]
[392542891,1761635485281,-500.0,0.00023835,2]
[392542892,1761635485291,-500.0,0.00023835,2]
[392542893,1761635485301,-1296.21,0.00023835,2]
[392542894,1761635485311,-558.93,0.00023835,2]
[392542895,1761635485321,-500.0,0.00023835,2]
[392542896,1761635485331,-567.19,0.00023835,2]
[392542897,1761635485340,-500.0,0.00023835,2]
[392542898,1761635485351,-538.03,0.00023835,2]
[392542899,1761635485362,-693.14,0.00023835,2]
[392542900,1761635485372,-500.0,0.00023835,2]
[392542901,1761635485381,-729.65,0.00023835,2]
[392542902,1761635485391,-500.0,0.00023835,2]
[392542903,1761635485401,-500.0,0.00023835,2]
[392542904,1761635485410,-811.98,0.00023835,2]
[392542905,1761635485419,-1562.88,0.00023835,2]
[392542906,1761635485429,-610.16,0.00023835,2]
[392542907,1761635485438,-500.0,0.00023835,2]
[392542908,1761635485448,-1066.35,0.00023835,2]
[392542909,1761635485457,-608.81,0.00023835,2]
[392542910,1761635485467,-600.01,0.00023835,2]
[392542911,1761635485477,-500.0,0.00023835,2]
[392542912,1761635485486,-642.52799055,0.00023835,2]
[392542913,1761635485495,-1001.11,0.00023835,2]
[392542914,1761635485505,-632.42,0.00023835,2]
[392542915,1761635485514,-961.06,0.00023835,2]
[392542916,1761635485523,-1172.41,0.00023835,2]
[392542917,1761635485532,-500.0,0.00023835,2]
[392542918,1761635485541,-675.95,0.00023835,2]
[392542919,1761635485551,-594.17648484,0.00023835,2]
[392542920,1761635485561,-537.35,0.00023835,2]
[392542921,1761635485571,-622.73,0.00023835,2]
[392542922,1761635485580,-500.0,0.00023835,2]
[392542923,1761635485591,-1475.32,0.00023835,2]
[392542924,1761635485601,-943.69,0.00023835,2]
[392542925,1761635485610,-527.73,0.00023835,2]
[392542926,1761635485620,-500.0,0.00023835,2]
[392542927,1761635485630,-500.0,0.00023835,2]
[392542928,1761635485639,-546.22,0.00023835,2]
[392542929,1761635485648,-802.51,0.00023835,2]
[392542930,1761635485657,-1323.07,0.00023835,2]
[392542931,1761635485667,-500.0,0.00023835,2]
[392542932,1761635485676,-500.0,0.00023835,2]
[392542933,1761635485685,-808.32,0.00023835,2]
[392542934,1761635485695,-1081.49,0.00023835,2]
[392542935,1761635485704,-500.0,0.00023835,2]
[392542936,1761635485713,-2191.24,0.00023835,2]
[392542937,1761635485722,-500.0,0.00023835,2]
[392542938,1761635485732,-500.0,0.00023835,2]
[392542939,1761635485741,-918.7,0.00023835,2]
[392542940,1761635485751,-500.0,0.00023835,2]
[392542941,1761635485760,-649.38,0.00023835,2]
[392542942,1761635485770,-870.92,0.00023835,2]
[392542943,1761635485779,-500.0,0.00023835,2]
[392542944,1761635485788,-730.78,0.00023835,2]
[392542945,1761635485797,-2634.03,0.00023835,2]
[392542946,1761635485806,-500.0,0.00023835,2]
[392542947,1761635485815,-500.0,0.00023835,2]
[392542948,1761635485824,-1269.87,0.00023835,2]
[392542949,1761635485834,-1967.43,0.00023835,2]
[392542950,1761635485843,-500.0,0.00023835,2]
[392542951,1761635485852,-650.12,0.00023835,2]
[392542952,1761635485861,-512.74,0.00023835,2]
[392542953,1761635485871,-965.61,0.00023835,2]
[392542954,1761635485881,-500.0,0.00023835,2]
[392542955,1761635485890,-594.65,0.00023835,2]
[392542956,1761635485899,-744.7,0.00023835,2]
[392542957,1761635485909,-662.78,0.00023835,2]
[392542958,1761635485918,-1987.69,0.00023835,2]
[392542959,1761635485927,-1564.86,0.00023835,2]
[392542960,1761635485937,-483.38202973,0.00023835,2]
[392542961,1761635485948,-1117.6,0.00023835,2]
[392542962,1761635485959,-500.0,0.00023835,2]
[392542963,1761635485969,-598.98156104,0.00023835,2]
[392542964,1761635485979,-500.0,0.00023835,2]
[392542965,1761635485989,-500.0,0.00023835,2]
[392542966,1761635485998,-903.04,0.00023835,2]
[392542967,1761635486008,-2111.37,0.00023835,2]
[392542968,1761635486018,-500.0,0.00023835,2]
[392542969,1761635486027,-543.29,0.00023835,2]
[392542970,1761635486037,-626.07,0.00023835,2]
[392542971,1761635486046,-2223.28,0.00023835,2]
[392542972,1761635486056,-500.0,0.00023835,2]
[392542973,1761635486065,-513.4076925,0.00023835,2]
[392542974,1761635486074,-1289.34,0.00023835,2]
[392542975,1761635486084,-2843.76,0.00023835,2]
[392542976,1761635486096,-500.0,0.00023835,2]
[392542977,1761635486106,-500.0,0.00023835,2]
[392542978,1761635486117,-630.14,0.00023835,2]
[392542979,1761635486126,-500.0,0.00023835,2]
[392542980,1761635486136,-500.0,0.00023835,2]
[392542981,1761635486146,-769.7,0.00023835,2]
[392542982,1761635486155,-715.08,0.00023835,2]
[392542983,1761635486164,-500.0,0.00023835,2]
[392542984,1761635486173,-4652.07,0.00023835,2]
[392542985,1761635486183,-500.0,0.00023835,2]
[392542986,1761635486192,-505.99,0.00023835,2]
[392542987,1761635486201,-3216.82,0.00023835,2]
[392542988,1761635486211,-500.0,0.00023835,2]
[392542989,1761635486220,-853.88,0.00023835,2]
[392542990,1761635486229,-521.58862772,0.00023835,2]
[392542991,1761635486238,-886.63,0.00023835,2]
[392542992,1761635486247,-500.0,0.00023835,2]
[392542993,1761635486257,-29228.49,0.00023835,2]
[392542994,1761635486266,-2085.69,0.00023835,2]
[392542995,1761635486275,-500.0,0.00023835,2]
[392542996,1761635486286,-551.06,0.00023835,2]
[392542997,1761635486295,-500.0,0.00023835,2]
[392542998,1761635486304,-500.0,0.00023835,2]
[392542999,1761635486314,-500.0,0.00023835,2]
[392543000,1761635486324,-526.95,0.00023835,2]
[392543001,1761635486333,-500.0,0.00023835,2]
[392543002,1761635486343,-565.2,0.00023835,2]
[392543003,1761635486352,-500.0,0.00023835,2]
[392543004,1761635486362,-1012.52,0.00023835,2]
[392543005,1761635486371,-500.0,0.00023835,2]
[392543006,1761635486380,-614.58,0.00023835,2]
[392543007,1761635486389,-684.26,0.00023835,2]
[392543008,1761635486399,-500.0,0.00023835,2]
[392543009,1761635486408,-500.0,0.00023835,2]
[392543010,1761635486417,-500.0,0.00023835,2]
[392543011,1761635486427,-500.0,0.00023835,2]
[392543012,1761635486436,-500.0,0.00023835,2]
[392543013,1761635486445,-735.45,0.00023835,2]
[392543014,1761635486455,-1758.47,0.00023835,2]
[392543015,1761635486464,-500.0,0.00023835,2]
[392543016,1761635486474,-500.0,0.00023835,2]
[392543017,1761635486483,-3138.8,0.00023835,2]
[392543018,1761635486493,-258.84022458,0.00023835,2]
[392543019,1761635486502,-563.84,0.00023835,2]
[392543020,1761635486511,-500.0,0.00023835,2]
[392543021,1761635486648,-769.55,0.00023835,2]
[392543022,1761635486660,-500.0,0.00023835,2]
[392543023,1761635486670,-475.92045457,0.00023835,2]
[392543024,1761635486679,-909.78,0.00023835,2]
[392543025,1761635486689,-1183.88,0.00023835,2]
[392543026,1761635486699,-1758.37,0.00023835,2]
[392543027,1761635486708,-2123.15,0.00023835,2]
[392543028,1761635486718,-500.0,0.00023835,2]
[392543029,1761635486728,-936.49,0.00023835,2]
[392543030,1761635486738,-1564.89,0.00023835,2]
[392543031,1761635486747,-500.0,0.00023835,2]
[392543032,1761635486756,-500.0,0.00023835,2]
[392543033,1761635486766,-500.0,0.00023835,2]
[392543034,1761635486775,-2326.74,0.00023835,2]
[392543035,1761635486784,-751.97,0.00023835,2]
[392543036,1761635486794,-862.57,0.00023835,2]
[392543037,1761635486804,-500.0,0.00023835,2]
[392543038,1761635486815,-500.0,0.00023835,2]
[392543039,1761635486826,-500.0,0.00023835,2]
[392543040,1761635486835,-500.0,0.00023835,2]
[392543041,1761635486844,-2586.64,0.00023835,2]
[392543042,1761635486854,-1388.81,0.00023835,2]
[392543043,1761635486864,-1962.72,0.00023835,2]
[392543044,1761635486874,-1111.55,0.00023835,2]
[392543045,1761635486883,-500.0,0.00023835,2]
[392543046,1761635486892,-846.75,0.00023835,2]
[392543047,1761635486902,-863.32,0.00023835,2]
[392543048,1761635486912,-540.08,0.00023835,2]
[392543049,1761635486922,-500.0,0.00023835,2]
[392543050,1761635486931,-2240.96,0.00023835,2]
[392543051,1761635486941,-500.0,0.00023835,2]
[392543052,1761635486951,-500.0,0.00023835,2]
[392543053,1761635486962,-1160.89,0.00023835,2]
[392543054,1761635486974,-5928.57,0.00023835,2]
[392543055,1761635486985,-2323.44,0.00023835,2]
[392543056,1761635486995,-1791.62,0.00023835,2]
[392543057,1761635487007,-2621.46,0.00023835,2]
[392543058,1761635487018,-500.0,0.00023835,2]
[392543059,1761635487029,-631.85,0.00023835,2]
[392543060,1761635487040,-500.0,0.00023835,2]
[392543061,1761635487051,-975.55,0.00023835,2]
[392543062,1761635487061,-500.0,0.00023835,2]
[392543063,1761635487071,-500.0,0.00023835,2]
[392543064,1761635487082,-2321.63,0.00023835,2]
[392543065,1761635487097,-1186.44,0.00023835,2]
[392543066,1761635487107,-936.95,0.00023835,2]
[392543067,1761635487119,-500.0,0.00023835,2]
[392543068,1761635487130,-2951.94,0.00023835,2]
[392543069,1761635487143,-1024.53,0.00023835,2]
[392543070,1761635487153,-500.0,0.00023835,2]
[392543071,1761635487164,-1393.7,0.00023835,2]
[392543072,1761635487175,-500.0,0.00023835,2]
[392543073,1761635487185,-500.0,0.00023835,2]
[392543074,1761635487194,-569.62,0.00023835,2]
[392543075,1761635487204,-1915.93,0.00023835,2]
[392543076,1761635487214,-500.0,0.00023835,2]
[392543077,1761635487224,-500.0,0.00023835,2]
[392543078,1761635487233,-715.89,0.00023835,2]
[392543079,1761635487243,-2003.25,0.00023835,2]
[392543080,1761635487252,-500.0,0.00023835,2]
[392543081,1761635487261,-614.29,0.00023835,2]
[392543082,1761635487271,-216.55132538,0.00023835,2]
[392543083,1761635487280,-1493.81,0.00023835,2]
[392543084,1761635487290,-1016.96,0.00023835,2]
[392543085,1761635487299,-637.23,0.00023835,2]
[392543086,1761635487309,-1173.47,0.00023835,2]
[392543087,1761635487318,-500.0,0.00023835,2]
[392543088,1761635487327,-500.0,0.00023835,2]
[392543089,1761635487336,-500.0,0.00023835,2]
[392543090,1761635487346,-1075.02,0.00023835,2]
[392543091,1761635487356,-994.98,0.00023835,2]
[392543092,1761635487365,-675.64,0.00023835,2]
[392543093,1761635487375,-1399.5,0.00023835,2]
[392543094,1761635487384,-722.95,0.00023835,2]
[392543095,1761635487393,-3537.59,0.00023835,2]
[392543096,1761635487403,-500.0,0.00023835,2]
[392543097,1761635487412,-2387.11,0.00023835,2]
[392543098,1761635487422,-500.0,0.00023835,2]
[392543099,1761635487432,-2131.55,0.00023835,2]
[392543100,1761635487443,-500.0,0.00023835,2]
[392543101,1761635487455,-12061.61,0.00023835,2]
[392543102,1761635487466,-781.37,0.00023835,2]
[392543103,1761635487478,-1649.47,0.00023835,2]
[392543104,1761635487487,-1002.41,0.00023835,2]
[392543105,1761635487496,-500.0,0.00023835,2]
[392543106,1761635487506,-500.0,0.00023835,2]
[392543107,1761635487516,-500.0,0.00023835,2]
[392543108,1761635487525,-500.0,0.00023835,2]
[392543109,1761635487535,-1726.31,0.00023835,2]
[392543110,1761635487544,-686.19,0.00023835,2]
[392543111,1761635487554,-2475.29,0.00023835,2]
[392543112,1761635487564,-1842.19,0.00023835,2]
[392543113,1761635487574,-500.0,0.00023835,2]
[392543114,1761635487583,-699.27,0.00023835,2]
[392543115,1761635487593,-500.0,0.00023835,2]
[392543116,1761635487602,-1551.56,0.00023835,2]
[392543117,1761635487612,-500.0,0.00023835,2]
[392543118,1761635487622,-529.25,0.00023835,2]
[392543119,1761635487631,-2313.89,0.00023835,2]
[392543120,1761635487640,-2035.81,0.00023835,2]
[392543121,1761635487649,-500.0,0.00023835,2]
[392543122,1761635487659,-951.2,0.00023835,2]
[392543123,1761635487668,-500.0,0.00023835,2]
[392543124,1761635487677,-526.13,0.00023835,2]
[392543125,1761635487687,-2014.9,0.00023835,2]
[392543126,1761635487696,-890.11,0.00023835,2]
[392543127,1761635487706,-3964.38,0.00023835,2]
[392543128,1761635487716,-1023.23,0.00023835,2]
[392543129,1761635487726,-480.0,0.00023835,2]
[392543130,1761635487735,-500.0,0.00023835,2]
[392543131,1761635487745,-2909.37,0.00023835,2]
[392543132,1761635487754,-500.0,0.00023835,2]
[392543133,1761635487764,-500.0,0.00023835,2]
[392543134,1761635487774,-500.0,0.00023835,2]
[392543135,1761635487784,-2874.27,0.00023835,2]
[392543136,1761635487794,-2741.75,0.00023835,2]
[392543137,1761635487803,-1318.04,0.00023835,2]
[392543138,1761635487813,-500.0,0.00023835,2]
[392543139,1761635487823,-500.0,0.00023835,2]
[392543140,1761635487832,-500.0,0.00023835,2]
[392543141,1761635487841,-1545.04,0.00023835,2]
[392543142,1761635487852,-679.39,0.00023835,2]
[392543143,1761635487861,-500.0,0.00023835,2]
[392543144,1761635487871,-609.24,0.00023835,2]
[392543145,1761635487879,-3883.37,0.00023835,2]
[392543146,1761635487888,-1588.65,0.00023835,2]
[392543147,1761635487898,-500.0,0.00023835,2]
[392543148,1761635487909,-500.0,0.00023835,2]
[392543149,1761635487918,-500.0,0.00023835,2]
[392543150,1761635487928,-5972.25,0.00023835,2]
[392543151,1761635487938,-500.0,0.00023835,2]
[392543152,1761635487947,-500.0,0.00023835,2]
[392543153,1761635487957,-500.0,0.00023835,2]
[392543154,1761635487966,-2782.69,0.00023835,2]
[392543155,1761635487975,-1281.17,0.00023835,2]
[392543156,1761635487985,-500.0,0.00023835,2]
[392543157,1761635487995,-500.0,0.00023835,2]
[392543158,1761635488005,-500.0,0.00023835,2]
[392543159,1761635488014,-500.0,0.00023835,2]
[392543160,1761635488024,-551.02,0.00023835,2]
[392543161,1761635488034,-750.43,0.00023835,2]
[392543162,1761635488043,-463.81100627,0.00023835,2]
[392543163,1761635488054,-786.84,0.00023835,2]
[392543164,1761635488063,-500.0,0.00023835,2]
[392543165,1761635488072,-3198.47,0.00023835,2]
[392543166,1761635488082,-211.10332701,0.00023835,2]
[392543167,1761635488091,-500.0,0.00023835,2]
[392543168,1761635488101,-858.33,0.00023835,2]
[392543169,1761635488111,-683.28,0.00023835,2]
[392543170,1761635488120,-1378.5,0.00023835,2]
[392543171,1761635488129,-2587.33,0.00023835,2]
[392543172,1761635488138,-799.95,0.00023835,2]
[392543173,1761635488146,-500.0,0.00023835,2]
[392543174,1761635488156,-543.47,0.00023835,2]
[392543175,1761635488166,-1913.07,0.00023835,2]
[392543176,1761635488176,-500.0,0.00023835,2]
[392543177,1761635488187,-649.31,0.00023835,2]
[392543178,1761635488198,-1884.93,0.00023835,2]
[392543179,1761635488207,-3561.46,0.00023835,2]
[392543180,1761635488217,-860.49,0.00023835,2]
[392543181,1761635488226,-4199.74,0.00023835,2]
[392543182,1761635488235,-3355.11,0.00023835,2]
[392543183,1761635488244,-664.29,0.00023835,2]
[392543184,1761635488254,-586.00816768,0.00023835,2]
[392543185,1761635488263,-500.0,0.00023835,2]
[392543186,1761635488273,-1833.01,0.00023835,2]
[392543187,1761635488282,-609.22,0.00023835,2]
[392543188,1761635488291,-500.0,0.00023835,2]
[392543189,1761635488301,-899.79,0.00023835,2]
[392543190,1761635488309,-935.9,0.00023835,2]
[392543191,1761635488319,-500.0,0.00023835,2]
[392543192,1761635488328,-500.0,0.00023835,2]
[392543193,1761635488337,-1821.5,0.00023835,2]
[392543194,1761635488347,-902.01,0.00023835,2]
[392543195,1761635488357,-831.98,0.00023835,2]
[392543196,1761635488366,-500.0,0.00023835,2]
[392543197,1761635488375,-500.0,0.00023845,2]
[392543198,1761635488385,-22594.0,0.0002387,7]
[392543199,1761635488394,-500.0,0.00023879,2]
[392543200,1761635488404,-500.0,0.00023891,2]
[392543201,1761635488413,-800.84576162,0.000239,2]
[392543202,1761635488422,-4388.0,0.0002394,2]
[392543203,1761635488431,-500.0,0.00023973,2]
[392543204,1761635488440,-900.0,0.00023976,2]
[392543205,1761635488449,-672.35635171,0.00023993,2]
[392543206,1761635488458,-168.59,0.00024,14]
[392543207,1761635488467,-9618.54896989,0.00024,30]
[392543208,1761635488477,-7001.66762946,0.00024,3]
[392543209,1761635488486,-39605.35183109,0.00024,30]
[392543210,1761635488496,-1719.81745484,0.00024,2]
[392543211,1761635488507,-164.17583451,0.00024,2]
[392543212,1761635488517,-461.29508643,0.00024,2]
[392543213,1761635488526,-49412.54047766,0.00024,60]
[392543214,1761635488535,-200.0,0.00024,10]
[392543215,1761635488545,-10004.61666971,0.00024008,2]
[392543216,1761635488555,-516.20226783,0.00024036,2]
[392543217,1761635488566,-500.0,0.00024048,2]
[392543218,1761635488575,-500.0,0.00024052,2]
[392543219,1761635488585,-500.0,0.00024082,2]
[392543220,1761635488595,-500.0,0.00024095,2]
[392543221,1761635488604,-500.0,0.00024099,2]
[392543222,1761635488615,-500.0,0.00024109,2]
[392543223,1761635488624,-959.62,0.00024109,2]
[392543224,1761635488635,-184.32,0.00024109,2]
[392543225,1761635488645,-500.0,0.00024109,2]
[392543226,1761635488777,-500.0,0.00024109,2]
[392543227,1761635488787,-500.0,0.00024109,2]
[392543228,1761635488796,-715.75,0.00024109,2]
[392543229,1761635488806,-500.0,0.00024109,2]
[392543230,1761635488815,-295.29,0.00024109,2]
[392543231,1761635488825,-295.29,0.00024109,2]
[392543232,1761635488835,-295.29,0.00024109,2]
[392543233,1761635488845,-295.29,0.00024109,2]
[392543234,1761635488854,-295.29,0.00024109,2]
[392543235,1761635488863,-295.29,0.00024109,2]
[392543236,1761635488873,-295.29,0.00024109,2]
[392543237,1761635488882,-295.29,0.00024109,2]
[392543238,1761635488891,-295.29,0.00024109,2]
[392543239,1761635488900,-500.0,0.00024109,2]
[392543240,1761635488910,-603.19,0.00024109,2]
[392543241,1761635488919,-1127.61,0.00024109,2]
[392543242,1761635488928,-530.38,0.00024109,2]
[392543243,1761635488939,-500.0,0.00024109,2]
[392543244,1761635488948,-634.37,0.00024109,2]
[392543245,1761635488957,-469.39078597,0.00024109,2]
[392543246,1761635488966,-600.75338958,0.00024109,2]
[392543247,1761635488975,-1000.0,0.00024109,2]
[392543248,1761635488984,-173.1263272,0.00024109,2]
[392543249,1761635488993,-185.87750948,0.00024109,2]
[392543250,1761635489002,-638.18,0.00024109,2]
[392543251,1761635489012,-1152.11,0.00024109,2]
[392543252,1761635489020,-708.47,0.00024109,2]
[392543253,1761635489029,-1290.55,0.00024109,2]
[392543254,1761635489038,-556.59,0.00024109,2]
[392543255,1761635489048,-537.33,0.00024109,2]
[392543256,1761635489059,-584.67,0.00024109,2]
[392543257,1761635489068,-500.0,0.00024109,2]
[392543258,1761635489078,-500.0,0.00024109,2]
[392543259,1761635489088,-500.0,0.00024109,2]
[392543260,1761635489097,-741.13,0.00024109,2]
[392543261,1761635489106,-500.0,0.00024109,2]
[392543262,1761635489116,-500.0,0.00024109,2]
[392543263,1761635489125,-500.0,0.00024109,2]
[392543264,1761635489134,-1281.8,0.00024109,2]
[392543265,1761635489143,-500.0,0.00024109,2]
[392543266,1761635489152,-500.0,0.00024109,2]
[392543267,1761635489162,-500.0,0.00024109,2]
[392543268,1761635489171,-500.0,0.00024109,2]
[392543269,1761635489180,-314.86271788,0.00024109,2]
[392543270,1761635489189,-500.0,0.00024109,2]
[392543271,1761635489199,-991.69,0.00024109,2]
[392543272,1761635489208,-500.0,0.00024109,2]
[392543273,1761635489218,-1202.42,0.00024109,2]
[392543274,1761635489227,-500.0,0.00024109,2]
[392543275,1761635489236,-500.0,0.00024109,2]
[392543276,1761635489245,-500.0,0.00024109,2]
[392543277,1761635489254,-500.0,0.00024109,2]
[392543278,1761635489263,-569.6,0.00024109,2]
[392543279,1761635489273,-560.72,0.00024109,2]
[392543280,1761635489283,-500.0,0.00024109,2]
[392543281,1761635489292,-500.0,0.00024109,2]
[392543282,1761635489303,-500.0,0.00024109,2]
[392543283,1761635489313,-596.63,0.00024109,2]
[392543284,1761635489322,-500.0,0.00024109,2]
[392543285,1761635489331,-1041.06,0.00024109,2]
[392543286,1761635489341,-500.0,0.00024109,2]
[392543287,1761635489350,-707.6,0.00024109,2]
[392543288,1761635489363,-500.0,0.00024109,2]
[392543289,1761635489373,-500.0,0.00024109,2]
[392543290,1761635489382,-500.0,0.00024109,2]
[392543291,1761635489393,-500.0,0.00024109,2]
[392543292,1761635489404,-740.89,0.00024109,2]
[392543293,1761635489413,-498.27296752,0.00024109,2]
[392543294,1761635489423,-729.78,0.00024109,2]
[392543295,1761635489432,-554.86,0.00024109,2]
[392543296,1761635489442,-1476.19,0.00024109,2]
[392543297,1761635489451,-500.0,0.00024109,2]
[392543298,1761635489461,-955.14,0.00024109,2]
[392543299,1761635489470,-663.08,0.00024109,2]
[392543300,1761635489480,-500.0,0.00024109,2]
[392543301,1761635489493,-1193.15,0.00024109,2]
[392543302,1761635489503,-828.34,0.00024109,2]
[392543303,1761635489512,-500.0,0.00024109,2]
[392543304,1761635489522,-1527.13,0.00024109,2]
[392543305,1761635489533,-1186.35,0.00024109,2]
[392543306,1761635489544,-500.0,0.00024109,2]
[392543307,1761635489553,-500.0,0.00024109,2]
[392543308,1761635489564,-846.87,0.00024109,2]
[392543309,1761635489573,-500.0,0.00024109,2]
[392543310,1761635489584,-500.0,0.00024109,2]
[392543311,1761635489594,-500.0,0.00024109,2]
[392543312,1761635489603,-2295.33,0.00024109,2]
[392543313,1761635489613,-500.0,0.00024109,2]
[392543314,1761635489623,-598.96,0.00024109,2]
[392543315,1761635489632,-826.63,0.00024109,2]
[392543316,1761635489641,-908.14,0.00024109,2]
[392543317,1761635489652,-500.0,0.00024109,2]
[392543318,1761635489663,-500.0,0.00024109,2]
[392543319,1761635489673,-500.0,0.00024109,2]
[392543320,1761635489684,-500.0,0.00024109,2]
[392543321,1761635489701,-826.15,0.00024109,2]
[392543322,1761635489719,-1024.07,0.00024109,2]
[392543323,1761635489738,-500.0,0.00024109,2]
[392543324,1761635489757,-651.86,0.00024109,2]
[392543325,1761635489776,-786.57,0.00024109,2]
[392543326,1761635489793,-1120.22,0.00024109,2]
[392543327,1761635489810,-500.0,0.00024109,2]
[392543328,1761635489825,-500.0,0.00024109,2]
[392543329,1761635489842,-500.0,0.00024109,2]
[392543330,1761635489861,-708.44,0.00024109,2]
[392543331,1761635489882,-500.0,0.00024109,2]
[392543332,1761635489895,-592.66,0.00024109,2]
[392543333,1761635489914,-584.83,0.00024109,2]
[392543334,1761635489930,-500.0,0.00024109,2]
[392543335,1761635489946,-500.0,0.00024109,2]
[392543336,1761635489960,-500.0,0.00024109,2]
[392543337,1761635489975,-667.11,0.00024109,2]
[392543338,1761635489990,-1435.66,0.00024109,2]
[392543339,1761635490007,-2653.88,0.00024109,2]
[392543340,1761635490023,-500.0,0.00024109,2]
[392543341,1761635490039,-704.69,0.00024109,2]
[392543342,1761635490056,-500.0,0.00024109,2]
[392543343,1761635490071,-794.41,0.00024109,2]
[392543344,1761635490086,-1040.78,0.00024109,2]
[392543345,1761635490103,-500.0,0.00024109,2]
[392543346,1761635490120,-1280.75,0.00024109,2]
[392543347,1761635490136,-915.53,0.00024109,2]
[392543348,1761635490152,-2189.92,0.00024109,2]
[392543349,1761635490168,-500.0,0.00024109,2]
[392543350,1761635490182,-500.0,0.00024109,2]
[392543351,1761635490198,-574.84,0.00024109,2]
[392543352,1761635490212,-500.0,0.00024109,2]
[392543353,1761635490229,-1776.07,0.00024109,2]
[392543354,1761635490245,-885.22,0.00024109,2]
[392543355,1761635490260,-1000.0,0.00024109,2]
[392543356,1761635490276,-648.19,0.00024109,2]
[392543357,1761635490291,-1413.33,0.00024109,2]
[392543358,1761635490306,-500.0,0.00024109,2]
[392543359,1761635490321,-1472.19,0.00024109,2]
[392543360,1761635490337,-500.0,0.00024109,2]
[392543361,1761635490351,-894.76,0.00024109,2]
[392543362,1761635490366,-3175.04,0.00024109,2]
[392543363,1761635490380,-500.0,0.00024109,2]
[392543364,1761635490396,-500.0,0.00024109,2]
[392543365,1761635490410,-483.11840902,0.00024109,2]
[392543366,1761635490424,-500.0,0.00024109,2]
[392543367,1761635490439,-670.41,0.00024109,2]
[392543368,1761635490453,-558.04,0.00024109,2]
[392543369,1761635490467,-500.0,0.00024109,2]
[392543370,1761635490483,-1443.63,0.00024109,2]
[392543371,1761635490498,-500.0,0.00024109,2]
[392543372,1761635490512,-500.0,0.00024109,2]
[392543373,1761635490527,-532.74,0.00024109,2]
[392543374,1761635490541,-500.0,0.00024109,2]
[392543375,1761635490555,-500.0,0.00024109,2]
[392543376,1761635490570,-521.99272777,0.00024109,2]
[392543377,1761635490584,-500.0,0.00024109,2]
[392543378,1761635490598,-799.0,0.00024109,2]
[392543379,1761635490613,-500.0,0.00024109,2]
[392543380,1761635490628,-901.78,0.00024109,2]
[392543381,1761635490643,-410.17368578,0.00024109,2]